fUST/lending_fUST_20260112
["ID","MTS","AMOUNT","RATE_DAILY","PERIOD"]
[401362678,1768156238257,-300.2587553,9.071e-05,2]
[401362680,1768156238267,-221.32,9.079e-05,2]
[401362681,1768156238276,-343.96,9.1e-05,2]
[401362683,1768156238285,-152.03,9.2e-05,2]
[401362684,1768156238295,-2015.62323037,9.287e-05,2]
[401362685,1768156238304,-343.96,9.6e-05,2]
[401362686,1768156238314,-258.2,9.646e-05,2]
[401362687,1768156238323,-152.03,9.7e-05,2]
[401362688,1768156238333,-864.0,9.951e-05,2]
[401362689,1768156238342,-423.85588829,0.0001006,2]
[401362690,1768156238352,-343.96,0.000101,2]
[401362691,1768156238361,-3711.8478034,0.00010169,2]
[401362692,1768156238372,-152.03,0.000102,2]
[401362693,1768156238381,-295.09,0.00010214,2]
[401362694,1768156238391,-343.96,0.000106,2]
[401362695,1768156238401,-250.0,0.00010649,2]
[401362696,1768156238411,-331.98,0.00010781,2]
[401362697,1768156238420,-152.03,0.000108,2]
[401362698,1768156238430,-1000.0,0.00010946,2]
[401362699,1768156238441,-343.96,0.000112,2]
[401362700,1768156238451,-152.03,0.000113,2]
[401362701,1768156238461,-368.86,0.00011348,2]
[401362702,1768156238471,-343.96,0.000117,2]
[401362703,1768156238481,-152.03,0.000118,2]
[401362704,1768156238491,-1000.0,0.00012041,2]
[401362705,1768156238500,-244.0,0.00012041,2]
[401362706,1768156238510,-488.51187124,0.0001206,2]
[401362707,1768156238521,-343.96,0.000122,2]
[401362708,1768156238531,-152.03,0.000123,2]
[401362709,1768156238540,-882.65,0.00012329,2]
[401362710,1768156238550,-343.96,0.000127,2]
[401362711,1768156238559,-152.03,0.000129,2]
[401362712,1768156238568,-171.46,0.00012951,2]
[401362713,1768156238578,-2435.87748646,0.00013,2]
[401362714,1768156238588,-500.0,0.00013169,2]
[401362715,1768156238598,-500.0,0.00013169,2]
[401362716,1768156238607,-500.0,0.00013169,2]
[401362717,1768156238622,-500.0,0.00013169,2]
[401362718,1768156238632,-425.3782303,0.00013169,2]
[401362719,1768156238642,-500.0,0.00013169,2]
[401362720,1768156238652,-500.0,0.00013169,2]
[401362721,1768156238664,-500.0,0.00013169,2]
[401362722,1768156238673,-500.0,0.00013169,2]
[401362723,1768156238684,-500.0,0.00013169,2]
[401362724,1768156238693,-500.0,0.00013169,2]
[401362725,1768156238703,-418.19534927,0.00013169,2]
[401362726,1768156238713,-500.0,0.00013169,2]
[401362727,1768156238722,-500.0,0.00013169,2]
[401362728,1768156238731,-359.01938974,0.00013169,2]
[401362729,1768156238740,-500.0,0.00013169,2]
[401362730,1768156238750,-500.0,0.00013169,2]
[401362731,1768156238760,-500.0,0.00013169,2]
[401362732,1768156238770,-500.0,0.00013169,2]
[401362733,1768156238779,-500.0,0.00013169,2]
[401362734,1768156238788,-500.0,0.00013169,2]
[401362735,1768156238798,-500.0,0.00013169,2]
[401362736,1768156238808,-500.0,0.00013169,2]
[401362737,1768156238920,-500.0,0.00013169,2]
[401362738,1768156238938,-500.0,0.00013169,2]
[401362739,1768156238948,-457.18805164,0.00013169,2]
[401362740,1768156238958,-500.0,0.00013169,2]
[401362741,1768156238968,-354.0369692,0.00013169,2]
[401362742,1768156238978,-500.0,0.00013169,2]
[401362743,1768156238987,-500.0,0.00013169,2]
[401362744,1768156238998,-500.0,0.00013169,2]
[401362745,1768156239008,-500.0,0.00013169,2]
[401362746,1768156239017,-500.0,0.00013169,2]
[401362747,1768156239027,-500.0,0.00013169,2]
[401362748,1768156239038,-500.0,0.00013169,2]
[401362749,1768156239049,-500.0,0.00013169,2]
[401362750,1768156239060,-500.0,0.00013169,2]
[401362751,1768156239070,-500.0,0.00013169,2]
[401362752,1768156239080,-500.0,0.00013169,2]
[401362753,1768156239089,-500.0,0.00013169,2]
[401362754,1768156239099,-500.0,0.00013169,2]
[401362755,1768156239108,-500.0,0.00013169,2]
[401362756,1768156239117,-500.0,0.00013169,2]
[401362757,1768156239127,-500.0,0.00013169,2]
[401362758,1768156239137,-10000.0,0.00013173,2]
[401362759,1768156239147,-53165.07830166,0.00013173,2]
[401362760,1768156239157,-343.96,0.000132,2]
[401362761,1768156239166,-501.80916795,0.00013244,2]
[401362762,1768156239176,-311.13407746,0.00013244,2]
[401362763,1768156239185,-501.80916795,0.00013244,2]
[401362764,1768156239195,-501.80916795,0.00013244,2]
[401362765,1768156239205,-501.80916795,0.00013244,2]
[401362766,1768156239215,-501.80916795,0.00013244,2]
[401362767,1768156239225,-501.80916795,0.00013244,2]
[401362768,1768156239234,-501.80916795,0.00013244,2]
[401362769,1768156239244,-501.80916795,0.00013244,2]
[401362770,1768156239254,-501.80916795,0.00013244,2]
[401362771,1768156239264,-501.80916795,0.00013244,2]
[401362772,1768156239273,-501.80916795,0.00013244,2]
[401362773,1768156239283,-501.80916795,0.00013244,2]
[401362774,1768156239292,-501.80916795,0.00013244,2]
[401362775,1768156239301,-501.80916795,0.00013244,2]
[401362776,1768156239312,-501.80916795,0.00013244,2]
[401362777,1768156239323,-501.80916795,0.00013244,2]
[401362778,1768156239333,-501.80916795,0.00013244,2]
[401362779,1768156239344,-501.80916795,0.00013244,2]
[401362780,1768156239355,-501.80916795,0.00013244,2]
[401362781,1768156239366,-1000.0,0.00013245,2]
[401362782,1768156239377,-492.0,0.00013245,2]
[401362783,1768156239388,-500.0,0.00013273,2]
[401362784,1768156239398,-500.0,0.00013273,2]
[401362785,1768156239414,-500.0,0.00013273,2]
[401362786,1768156239424,-500.0,0.00013273,2]
[401362787,1768156239434,-500.0,0.00013273,2]
[401362788,1768156239444,-500.0,0.00013273,2]
[401362789,1768156239454,-500.0,0.00013273,2]
[401362790,1768156239464,-503.26850674,0.00013273,2]
[401362791,1768156239475,-500.0,0.00013273,2]
[401362792,1768156239484,-500.0,0.00013273,2]
[401362793,1768156239494,-500.0,0.00013273,2]
[401362794,1768156239504,-500.0,0.00013273,2]
[401362795,1768156239514,-315.27616607,0.00013273,2]
[401362796,1768156239524,-500.0,0.00013273,2]
[401362797,1768156239533,-500.0,0.00013273,2]
[401362798,1768156239543,-374.83618263,0.00013273,2]
[401362799,1768156239552,-500.0,0.00013273,2]
[401362800,1768156239563,-500.0,0.00013273,2]
[401362801,1768156239572,-495.22027723,0.00013273,2]
[401362802,1768156239582,-500.0,0.00013273,2]
[401362803,1768156239592,-618.64825079,0.00013273,2]
[401362804,1768156239601,-500.0,0.00013273,2]
[401362805,1768156239612,-500.0,0.00013273,2]
[401362806,1768156239623,-500.0,0.00013273,2]
[401362807,1768156239633,-500.0,0.00013273,2]
[401362808,1768156239643,-500.0,0.00013273,2]
[401362809,1768156239655,-500.0,0.00013273,2]
[401362810,1768156239666,-500.0,0.00013273,2]
[401362811,1768156239676,-500.0,0.00013273,2]
[401362812,1768156239691,-500.0,0.00013273,2]
[401362813,1768156239701,-152.03,0.000134,2]
[401362814,1768156239711,-3355.75920157,0.0001369,2]
[401362815,1768156239720,-740.96,0.00013698,2]
[401362816,1768156239730,-740.96,0.00013698,2]
[401362817,1768156239740,-570.37,0.00013698,2]
[401362818,1768156239750,-570.37,0.00013698,2]
[401362819,1768156239759,-570.37,0.00013698,2]
[401362820,1768156239769,-570.37,0.00013698,2]
[401362821,1768156239778,-570.37,0.00013698,2]
[401362822,1768156239787,-570.37,0.00013698,2]
[401362823,1768156239796,-570.37,0.00013698,2]
[401362824,1768156239805,-570.37,0.00013698,2]
[401362825,1768156239814,-5885.234885,0.00013699,2]
[401362826,1768156239823,-1000.0,0.00013699,2]
[401362827,1768156239833,-500.0,0.00013699,2]
[401362829,1768156239842,-500.0,0.00013699,2]
[401362831,1768156239851,-500.0,0.00013699,2]
[401362833,1768156239860,-500.0,0.00013699,2]
[401362835,1768156239869,-500.0,0.00013699,2]
[401362837,1768156239878,-500.0,0.00013699,2]
[401362839,1768156239888,-500.0,0.00013699,2]
[401362841,1768156239896,-500.0,0.00013699,2]
[401362843,1768156239906,-500.0,0.00013699,2]
[401362845,1768156239915,-500.0,0.00013699,2]
[401362848,1768156239924,-500.0,0.00013699,2]
[401362850,1768156239934,-500.0,0.00013699,2]
[401362852,1768156239943,-295.9151759,0.00013699,2]
[401362854,1768156239952,-500.0,0.00013699,2]
[401362855,1768156239961,-500.0,0.00013699,2]
[401362856,1768156239970,-500.0,0.00013699,2]
[401362858,1768156239979,-500.0,0.00013699,2]
[401362860,1768156239989,-343.96,0.000137,2]
[401362862,1768156239998,-170.16316784,0.00013821,2]
[401362864,1768156240008,-465.81779273,0.00013821,2]
[401362866,1768156240018,-304.14307857,0.00013821,2]
[401362868,1768156240027,-1000.0,0.00013821,2]
[401362870,1768156240037,-1000.0,0.00013821,2]
[401362872,1768156240046,-1000.0,0.00013821,2]
[401362875,1768156240056,-1000.0,0.00013821,2]
[401362877,1768156240066,-1000.0,0.00013821,2]
[401362879,1768156240076,-1000.0,0.00013821,2]
[401362882,1768156240085,-1000.0,0.00013821,2]
[401362885,1768156240095,-1000.0,0.00013821,2]
[401362887,1768156240104,-1000.0,0.00013821,2]
[401362889,1768156240113,-1000.0,0.00013821,2]
[401362891,1768156240123,-1000.0,0.00013821,2]
[401362893,1768156240132,-1000.0,0.00013821,2]
[401362896,1768156240142,-1000.0,0.00013821,2]
[401362899,1768156240151,-1000.0,0.00013821,2]
[401362902,1768156240161,-152.03,0.000139,2]
[401362903,1768156240170,-553.1678542,0.0001406,2]
[401362904,1768156240179,-343.96,0.000142,2]
[401362905,1768156240188,-570.37,0.00014246,2]
[401362906,1768156240197,-1000.0,0.00014247,2]
[401362907,1768156240206,-999.24471264,0.00014247,2]
[401362908,1768156240215,-1000.0,0.00014247,2]
[401362909,1768156240224,-413.61388111,0.00014247,2]
[401362910,1768156240233,-500.0,0.00014247,2]
[401362911,1768156240243,-1000.0,0.00014247,2]
[401362913,1768156240252,-283.84380117,0.00014247,2]
[401362915,1768156240261,-1000.0,0.00014247,2]
[401362917,1768156240271,-1000.0,0.00014247,2]
[401362920,1768156240280,-1000.0,0.00014247,2]
[401362923,1768156240289,-500.0,0.00014247,2]
[401362926,1768156240299,-1000.0,0.00014247,2]
[401362929,1768156240309,-1000.0,0.00014247,2]
[401362932,1768156240318,-638.41119879,0.00014247,2]
[401362936,1768156240328,-1000.0,0.00014247,2]
[401362939,1768156240338,-1000.0,0.00014247,2]
[401362941,1768156240348,-740.96,0.00014367,2]
[401362945,1768156240359,-570.37,0.00014368,2]
[401362947,1768156240368,-1500.0,0.00014368,2]
[401362950,1768156240379,-1500.0,0.00014368,2]
[401362953,1768156240388,-501.65991965,0.00014368,2]
[401362956,1768156240397,-1500.0,0.00014368,2]
[401362959,1768156240407,-1500.0,0.00014368,2]
[401362963,1768156240418,-1500.0,0.00014368,2]
[401362966,1768156240428,-1500.0,0.00014368,2]
[401362969,1768156240438,-1500.0,0.00014368,2]
[401362972,1768156240448,-1500.0,0.00014368,2]
[401362975,1768156240457,-1500.0,0.00014368,2]
[401362978,1768156240466,-1178.38612751,0.00014368,2]
[401362981,1768156240476,-1500.0,0.00014368,2]
[401362983,1768156240486,-1500.0,0.00014368,2]
[401362986,1768156240495,-1500.0,0.00014368,2]
[401362989,1768156240505,-152.03,0.000144,2]
[401362992,1768156240515,-5000.0,0.0001451,2]
[401362995,1768156240524,-1000.0,0.0001457,2]
[401362999,1768156240534,-791.0,0.0001457,2]
[401363001,1768156240543,-343.96,0.000147,2]
[401363005,1768156240553,-1500.0,0.00014795,2]
[401363007,1768156240562,-1500.0,0.00014795,2]
[401363010,1768156240572,-319.8575815,0.00014795,2]
[401363014,1768156240582,-1500.0,0.00014795,2]
[401363016,1768156240591,-1500.0,0.00014795,2]
[401363019,1768156240601,-1500.0,0.00014795,2]
[401363022,1768156240612,-1418.97723055,0.00014795,2]
[401363025,1768156240623,-1500.0,0.00014795,2]
[401363028,1768156240632,-740.96,0.00014916,2]
[401363030,1768156240642,-570.37,0.00014916,2]
[401363033,1768156240651,-1000.0,0.00014916,2]
[401363038,1768156240662,-988.99241758,0.00014916,2]
[401363041,1768156240671,-1054.02767991,0.00014916,2]
[401363043,1768156240682,-2000.0,0.00014916,2]
[401363044,1768156240691,-2000.0,0.00014916,2]
[401363046,1768156240701,-2000.0,0.00014916,2]
[401363049,1768156240711,-2000.0,0.00014916,2]
[401363050,1768156240720,-2000.0,0.00014916,2]
[401363053,1768156240730,-2000.0,0.00014916,2]
[401363055,1768156240739,-821.06911742,0.00014916,2]
[401363057,1768156240749,-2000.0,0.00014916,2]
[401363058,1768156240758,-152.03,0.00015,2]
[401363060,1768156240768,-1000.0,0.00015,2]
[401363062,1768156240777,-2429.49739422,0.00015,2]
[401363064,1768156240787,-800.0,0.00015068,2]
[401363066,1768156240796,-343.96,0.000153,2]
[401363069,1768156240806,-570.37,0.00015342,2]
[401363070,1768156240815,-2143.18421046,0.00015342,2]
[401363073,1768156240825,-1000.0,0.00015342,2]
[401363075,1768156240834,-2000.0,0.00015342,2]
[401363076,1768156240846,-2000.0,0.00015342,2]
[401363079,1768156240856,-2000.0,0.00015342,2]
[401363080,1768156240865,-1055.48898116,0.00015464,2]
[401363083,1768156240875,-2500.0,0.00015464,2]
[401363085,1768156240885,-2500.0,0.00015464,2]
[401363087,1768156240894,-1874.68815725,0.00015464,2]
[401363089,1768156240904,-2500.0,0.00015464,2]
[401363091,1768156240914,-2500.0,0.00015464,2]
[401363093,1768156240923,-152.03,0.000155,2]
[401363094,1768156240932,-343.96,0.000158,2]
[401363105,1768156241020,-2379.03607709,0.0001589,2]
[401363107,1768156241046,-2500.0,0.0001589,2]
[401363109,1768156241055,-2500.0,0.0001589,2]
[401363111,1768156241073,-100000.0,0.0001599,2]
[401363113,1768156241082,-152.03,0.00016,2]
[401363115,1768156241092,-570.37,0.00016012,2]
[401363117,1768156241101,-3000.0,0.00016012,2]
[401363119,1768156241111,-966.62413338,0.00016012,2]
[401363121,1768156241121,-3000.0,0.00016012,2]
[401363123,1768156241130,-3000.0,0.00016012,2]
[401363125,1768156241140,-1000.0,0.00016027,2]
[401363127,1768156241149,-1000.0,0.00016027,2]
[401363129,1768156241159,-617.82383716,0.0001606,2]
[401363131,1768156241168,-1600.0,0.00016164,2]
[401363133,1768156241178,-343.96,0.000163,2]
[401363135,1768156241188,-500.0,0.00016438,2]
[401363137,1768156241199,-423.20869213,0.00016438,2]
[401363139,1768156241208,-500.0,0.00016438,2]
[401363141,1768156241218,-500.0,0.00016438,2]
[401363143,1768156241228,-500.0,0.00016438,2]
[401363145,1768156241238,-500.0,0.00016438,2]
[401363147,1768156241247,-3000.0,0.00016438,2]
[401363149,1768156241256,-3000.0,0.00016438,2]
[401363151,1768156241265,-200.0,0.00016473,2]
[401363153,1768156241274,-152.03,0.000165,2]
[401363155,1768156241283,-3500.0,0.0001656,2]
[401363157,1768156241294,-1732.45700431,0.0001656,2]
[401363159,1768156241303,-3500.0,0.0001656,2]
[401363161,1768156241312,-410.90000001,0.00016778,2]
[401363163,1768156241321,-343.96,0.000168,2]
[401363165,1768156241331,-1961.92726002,0.00016986,2]
[401363167,1768156241339,-3500.0,0.00016986,2]
[401363169,1768156241348,-152.03,0.00017,2]
[401363171,1768156241357,-58758.90036158,0.00017,2]
[401363173,1768156241367,-570.37,0.00017107,2]
[401363175,1768156241377,-4000.0,0.00017108,2]
[401363176,1768156241387,-1045.00690479,0.00017108,2]
[401363178,1768156241395,-283.8218406,0.00017261,2]
[401363180,1768156241404,-500.0,0.00017261,2]
[401363182,1768156241414,-343.96,0.000173,2]
[401363184,1768156241424,-550.0,0.00017398,2]
[401363186,1768156241434,-5000.0,0.00017412,2]
[401363188,1768156241444,-4000.0,0.00017534,2]
[401363190,1768156241454,-152.03,0.000176,2]
[401363192,1768156241463,-2136.47349432,0.000176,2]
[401363194,1768156241472,-1000.0,0.00017629,2]
[401363196,1768156241481,-1000.0,0.00017629,2]
[401363198,1768156241490,-579.0,0.00017629,2]
[401363200,1768156241500,-567.76023551,0.00017642,2]
[401363202,1768156241509,-322.9876002,0.00017642,2]
[401363204,1768156241517,-4500.0,0.00017656,2]
[401363206,1768156241527,-343.96,0.000178,2]
[401363208,1768156241536,-400.0,0.00017842,2]
[401363210,1768156241546,-4125.89789188,0.0001796,2]
[401363212,1768156241555,-161769.51166541,0.00018,2]
[401363214,1768156241564,-682.47982012,0.0001806,2]
[401363216,1768156241573,-4500.0,0.00018082,2]
[401363218,1768156241583,-152.03,0.000181,2]
[401363220,1768156241592,-570.37,0.00018203,2]
[401363222,1768156241602,-5000.0,0.00018204,2]
[401363224,1768156241612,-343.96,0.000183,2]
[401363226,1768156241623,-152.03,0.000186,2]
[401363228,1768156241631,-5000.0,0.0001863,2]
[401363230,1768156241641,-642.48470631,0.00018752,2]
[401363232,1768156241651,-5000.0,0.00018863,2]
[401363234,1768156241661,-502.69926409,0.000189,2]
[401363236,1768156241671,-303.10001608,0.000189,2]
[401363238,1768156241680,-343.96,0.000189,2]
[401363240,1768156241690,-325.0,0.00018935,2]
[401363242,1768156241699,-2124.26841277,0.00018935,2]
[401363244,1768156241708,-570.37,0.00018989,2]
[401363246,1768156241717,-570.37,0.00018989,2]
[401363248,1768156241727,-570.37,0.00018989,2]
[401363250,1768156241736,-570.37,0.00018989,2]
[401363252,1768156241746,-570.37,0.00018989,2]
[401363254,1768156241756,-570.37,0.00018989,2]
[401363256,1768156241765,-570.37,0.00018989,2]
[401363258,1768156241775,-570.37,0.00018989,2]
[401363260,1768156241784,-570.45,0.00018989,2]
[401363262,1768156241793,-17960.14853983,0.00019,2]
[401363264,1768156241802,-2603.49,0.00019,2]
[401363266,1768156241811,-1318.8946973,0.00019077,2]
[401363268,1768156241821,-3573.2128507,0.00019077,2]
[401363270,1768156241830,-152.03,0.000191,2]
[401363272,1768156241839,-380.0,0.00019124,2]
[401363274,1768156241849,-4623.1209168,0.00019178,2]
[401363276,1768156241857,-167.64,0.000192,2]
[401363278,1768156241866,-3634.93,0.000192,2]
[401363280,1768156241875,-32701.7,0.000192,2]
[401363282,1768156241884,-162.99,0.000192,2]
[401363284,1768156241893,-164.08,0.000192,2]
[401363286,1768156241902,-270.5591128,0.00019206,2]
[401363288,1768156241911,-453.0,0.00019285,2]
[401363290,1768156241920,-1000.0,0.00019392,2]
[401363291,1768156241931,-1000.0,0.00019392,2]
[401363294,1768156241941,-1000.0,0.00019392,2]
[401363296,1768156241951,-343.96,0.000194,2]
[401363298,1768156241959,-1291.95040079,0.00019522,2]
[401363299,1768156241969,-740.96,0.0001966,2]
[401363301,1768156241978,-1041.66666667,0.00019663,2]
[401363304,1768156241987,-152.03,0.000197,2]
[401363306,1768156241996,-343.96,0.000199,2]
[401363307,1768156242006,-4125.89789187,0.00019945,2]
[401363309,1768156242015,-151.55000802,0.0002,2]
[401363312,1768156242026,-652.55120361,0.0002,2]
[401363313,1768156242037,-14696.06851441,0.0002,2]
[401363315,1768156242047,-371.48046337,0.0002,2]
[401363318,1768156242058,-717.29999854,0.0002,2]
[401363320,1768156242067,-78214.50227922,0.0002,2]
[401363322,1768156242079,-23000.0,0.0002,2]
[401363323,1768156242088,-202.6566192,0.0002,2]
[401363325,1768156242097,-504.09317231,0.0002,2]
[401363328,1768156242108,-159.95633515,0.0002,2]
[401363329,1768156242117,-747.13580308,0.0002006,2]
[401363331,1768156242126,-485.24067775,0.0002013,2]
[401363333,1768156242135,-354.06140213,0.0002013,8]
[401363335,1768156242144,-152.03,0.000202,2]
[401363337,1768156242154,-343.96,0.000204,2]
[401363339,1768156242163,-700.4,0.00020534,2]
[401363341,1768156242172,-5885.234885,0.00020548,2]
[401363343,1768156242181,-1388.8426127,0.0002061,2]
[401363345,1768156242190,-152.03,0.000207,2]
[401363347,1768156242199,-256.38902735,0.000209,2]
[401363349,1768156242208,-343.96,0.000209,2]
[401363351,1768156242217,-277.25260667,0.00021,2]
[401363353,1768156242226,-46533.88981491,0.00021,2]
[401363355,1768156242236,-171.46,0.00021081,2]
[401363357,1768156242245,-32701.7,0.000211,2]
[401363359,1768156242255,-152.03,0.000212,2]
[401363362,1768156242266,-3634.93,0.000212,2]
[401363363,1768156242276,-354.06140213,0.00021325,10]
[401363366,1768156242286,-1000.0,0.00021332,10]
[401363367,1768156242296,-1000.0,0.00021332,10]
[401363368,1768156242306,-1000.0,0.00021332,10]
[401363369,1768156242315,-715.0,0.00021332,10]
[401363370,1768156242325,-151.0,0.000214,3]
[401363371,1768156242334,-343.96,0.000214,2]
[401363372,1768156242344,-2271.04094205,0.00021403,2]
[401363373,1768156242353,-2906.88840178,0.00021403,2]
[401363374,1768156242363,-1039.48725245,0.000215,2]
[401363375,1768156242372,-12857.92042375,0.000215,2]
[401363376,1768156242382,-12011.78673207,0.000215,2]
[401363377,1768156242391,-1318.8946973,0.00021668,2]
[401363378,1768156242400,-152.03,0.000218,2]
[401363379,1768156242409,-343.96,0.000219,2]
[401363380,1768156242419,-4125.89789187,0.0002193,2]
[401363381,1768156242428,-71098.85167872,0.00022,2]
[401363382,1768156242438,-700.4,0.00022031,2]
[401363383,1768156242447,-811.79178604,0.0002206,2]
[401363384,1768156242457,-270.5591128,0.00022169,2]
[401363385,1768156242467,-151.0,0.000222,8]
[401363386,1768156242477,-797.2915556,0.00022291,2]
[401363387,1768156242486,-152.03,0.000223,2]
[401363388,1768156242496,-343.96,0.000224,2]
[401363389,1768156242505,-354.06140213,0.00022521,11]
[401363390,1768156242514,-151.0,0.000226,10]
[401363391,1768156242524,-152.03,0.000228,2]
[401363392,1768156242533,-563.49459753,0.00023,3]
[401363393,1768156242542,-343.96,0.00023,2]
[401363395,1768156242551,-177.8997924,0.00023008,2]
[401363397,1768156242561,-32701.7,0.000231,2]
[401363399,1768156242570,-5167.80160317,0.00023283,2]
[401363401,1768156242579,-152.03,0.000233,2]
[401363403,1768156242589,-162.99,0.000233,7]
[401363405,1768156242598,-164.08,0.000233,7]
[401363407,1768156242607,-740.96,0.00023464,2]
[401363409,1768156242620,-1000.0,0.00023465,10]
[401363411,1768156242629,-1000.0,0.00023465,10]
[401363413,1768156242638,-1000.0,0.00023465,10]
[401363415,1768156242647,-151.0,0.000235,5]
[401363417,1768156242658,-343.96,0.000235,2]
[401363418,1768156242668,-700.4,0.00023528,2]
[401363420,1768156242677,-3634.93,0.000236,14]
[401363422,1768156242688,-151.0,0.000237,6]
[401363424,1768156242697,-354.06140213,0.00023716,12]
[401363426,1768156242706,-151.0,0.000238,6]
[401363429,1768156242715,-152.03,0.000239,2]
[401363431,1768156242724,-4125.89789187,0.00023915,2]
[401363432,1768156242734,-30033.15040816,0.00024,2]
[401363435,1768156242744,-186.81,0.00024,14]
[401363437,1768156242753,-343.96,0.00024,2]
[401363438,1768156242762,-1337.94840887,0.00024015,2]
[401363441,1768156242771,-5346.44184185,0.00024015,2]
[401363443,1768156242780,-876.447769,0.0002406,2]
[401363444,1768156242789,-306295.29126277,0.00024142,2]
[401363463,1768156242995,-2077.549415,0.00024142,2]
[401363464,1768156243006,-19716.64071051,0.00024142,2]
[401363465,1768156243143,-1135.23247575,0.00024142,2]
[401363466,1768156243157,-4582.3,0.00024142,2]
[401363467,1768156243169,-2150.51,0.00024142,2]
[401363481,1768156244786,-7156.42884042,0.00024142,2]
[401363482,1768156244799,-7127.65573944,0.00024142,2]
[401363483,1768156245241,-414.09177835,0.00024142,2]
[401363484,1768156245255,-2779.06493124,0.00024142,2]
[401363485,1768156245272,-4064.00000006,0.00024142,2]
[401363486,1768156245291,-2913.47731066,0.00024142,2]
[401363499,1768156246029,-23769.41992445,0.00024142,2]
[401363500,1768156300722,155.0,6e-05,2]
[401363501,1768156342315,7248.3,7.96e-05,2]
[401363502,1768156342340,10000.01,7.96e-05,2]
[401363503,1768156342364,10000.01,7.96e-05,2]
[401363504,1768156342388,10000.01,7.96e-05,2]
[401363505,1768156342413,5394.033524,7.96e-05,2]
[401363511,1768156679824,448.79,5.994e-05,2]
[401363512,1768156680080,448.79,5.994e-05,2]
[401363514,1768156804265,202.17,5e-05,2]
[401363515,1768156804784,202.17,5.5e-05,2]
[401363516,1768156805306,202.17,6e-05,2]
[401363517,1768156805905,202.17,6.5e-05,2]
[401363518,1768156806463,202.17,7.1e-05,2]
[401363519,1768156807211,202.17,7.6e-05,2]
[401363521,1768156950911,151.31,7.914e-05,2]
[401363531,1768157404494,168.51,5e-05,2]
[401363532,1768157404962,168.51,5.5e-05,2]
[401363533,1768157405530,168.51,6e-05,2]
[401363534,1768157406131,168.51,6.5e-05,2]
[401363535,1768157406841,168.51,7.1e-05,2]
[401363536,1768157407099,168.51,7.6e-05,2]
[401363552,1768157432154,-202.17,8.1e-05,2]
[401363553,1768157432164,-534.0,8.1e-05,2]
[401363554,1768157432174,-168.51,8.1e-05,2]
[401363556,1768157432183,-380.14006967,8.195e-05,2]
[401363558,1768157432192,-202.17,8.6e-05,2]
[401363560,1768157432202,-168.51,8.6e-05,2]
[401363561,1768157432210,-202.17,9.1e-05,2]
[401363563,1768157432220,-168.51,9.1e-05,2]
[401363564,1768157432230,-500.0,9.413e-05,2]
[401363565,1768157432240,-262.11326553,9.413e-05,2]
[401363566,1768157432249,-372.67077435,9.413e-05,2]
[401363567,1768157432259,-17203.87572809,9.414e-05,2]
[401363574,1768157433426,1333.006476,5e-05,2]
[401363575,1768157433450,2711.403524,5e-05,2]
[401363581,1768157438261,-179.51,8.576e-05,2]
[401363582,1768157438271,-215.41,9.148e-05,2]
[401363583,1768157438280,-26861.49889589,9.414e-05,2]
[401363584,1768157438292,-5934.62537602,9.414e-05,2]
[401363585,1768157438301,-202.17,9.6e-05,2]